[Event "Titled Tuesday Blitz March 01 Early 2022"]
[White "Risteski, Emil"]
[Black "Buscar, Michael"]
[WhiteFideId "15005267"]
[BlackFideId "2603616"]
[WhiteElo "2070"]
[BlackElo "2010"]
[Result "1-0"]
[Round "03"]
[TimeControl "180+1"]
[Date "2022.03.01"]
[WhiteClock "0:00:20"]
[BlackClock "0:00:01"]

1. e4 {[%clk 0:02:57]}  c5 {[%clk 0:02:59]} 2. Be2 {[%clk 0:02:55]}  e6 {[%clk 0:02:59]} 3. d3 {[%clk 0:02:55]}  a6 {[%clk 0:02:53]} 4. f4 {[%clk 0:02:55]}  b5 {[%clk 0:02:53]} 5. Nf3 {[%clk 0:02:56]}  Bb7 {[%clk 0:02:53]} 6. O-O {[%clk 0:02:57]}  Qc7 {[%clk 0:02:52]} 7. g3 {[%clk 0:02:45]}  Nc6 {[%clk 0:02:51]} 8. c3 {[%clk 0:02:45]}  d6 {[%clk 0:02:46]} 9. Be3 {[%clk 0:02:45]}  Nf6 {[%clk 0:02:46]} 10. h3 {[%clk 0:02:43]}  Be7 {[%clk 0:02:44]} 11. Nbd2 {[%clk 0:02:41]}  b4 {[%clk 0:02:43]} 12. g4 {[%clk 0:02:38]}  bxc3 {[%clk 0:02:41]} 13. bxc3 {[%clk 0:02:38]}  Qa5 {[%clk 0:02:38]} 14. Qc2 {[%clk 0:02:35]}  Nd7 {[%clk 0:02:38]} 15. Rab1 {[%clk 0:02:31]}  Qc7 {[%clk 0:02:35]} 16. Rb2 {[%clk 0:02:30]}  Rb8 {[%clk 0:02:26]} 17. Rfb1 {[%clk 0:02:30]}  Ba8 {[%clk 0:02:27]} 18. d4 {[%clk 0:02:20]}  O-O {[%clk 0:02:22]} 19. d5 {[%clk 0:02:19]}  exd5 {[%clk 0:02:20]} 20. exd5 {[%clk 0:02:19]}  Na7 {[%clk 0:02:06]} 21. c4 {[%clk 0:02:19]}  Rxb2 {[%clk 0:02:00]} 22. Rxb2 {[%clk 0:02:18]}  Rb8 {[%clk 0:02:00]} 23. Bd3 {[%clk 0:02:15]}  Nf8 {[%clk 0:01:58]} 24. Ng5 {[%clk 0:02:04]}  Rxb2 {[%clk 0:01:53]} 25. Qxb2 {[%clk 0:02:03]}  Bf6 {[%clk 0:01:53]} 26. Qb1 {[%clk 0:01:58]}  Qe7 {[%clk 0:01:32]} 27. Kf2 {[%clk 0:01:38]}  g6 {[%clk 0:01:23]} 28. Ndf3 {[%clk 0:01:28]}  Qb7 {[%clk 0:01:16]} 29. Ne4 {[%clk 0:01:23]}  Be7 {[%clk 0:01:00]} 30. f5 {[%clk 0:01:21]}  Qxb1 {[%clk 0:00:58]} 31. Bxb1 {[%clk 0:01:22]}  Nc8 {[%clk 0:00:55]} 32. f6 {[%clk 0:01:21]}  Bd8 {[%clk 0:00:56]} 33. g5 {[%clk 0:01:14]}  Nd7 {[%clk 0:00:54]} 34. Bf4 {[%clk 0:01:13]}  Bc7 {[%clk 0:00:53]} 35. Bc2 {[%clk 0:01:05]}  Ndb6 {[%clk 0:00:41]} 36. Bb3 {[%clk 0:01:05]}  a5 {[%clk 0:00:40]} 37. a3 {[%clk 0:01:05]}  Bb7 {[%clk 0:00:35]} 38. Ke3 {[%clk 0:01:00]}  Ba6 {[%clk 0:00:33]} 39. Nfd2 {[%clk 0:00:56]}  Kf8 {[%clk 0:00:32]} 40. Nxc5 {[%clk 0:00:55]}  Nxd5+ {[%clk 0:00:24]} 41. cxd5 {[%clk 0:00:54]}  Bb6 {[%clk 0:00:25]} 42. Ne4 {[%clk 0:00:33]}  dxc5 {[%clk 0:00:20]} 43. Ba4 {[%clk 0:00:29]}  c4+ {[%clk 0:00:17]} 44. Kd2 {[%clk 0:00:28]}  Bd4 {[%clk 0:00:14]} 45. d6 {[%clk 0:00:27]}  Nb6 {[%clk 0:00:10]} 46. d7 {[%clk 0:00:26]}  Nxd7 {[%clk 0:00:06]} 47. Bxd7 {[%clk 0:00:27]}  Bb7 {[%clk 0:00:07]} 48. Nd6 {[%clk 0:00:20]}  Bg2 {[%clk 0:00:05]} 49. Nxc4 {[%clk 0:00:19]}  Bc5 {[%clk 0:00:02]} 50. Bd6+ {[%clk 0:00:19]}  Bxd6 {[%clk 0:00:01]} 51. Nxd6 {[%clk 0:00:20]} 1-0


[Site "https://www.chess.com"]

[Event "Titled Tuesday Blitz March 01 Early 2022"]
[White "Rodchenkov, Sergey D."]
[Black "P., Komal Kishore"]
[WhiteFideId "4168712"]
[BlackFideId "5016703"]
[WhiteElo "2306"]
[BlackElo "2071"]
[Result "1-0"]
[Round "03"]
[TimeControl "180+1"]
[Date "2022.03.01"]
[WhiteClock "0:00:08"]
[BlackClock "0:00:03"]

1. e4 {[%clk 0:03:00]}  c6 {[%clk 0:03:00]} 2. d4 {[%clk 0:03:00]}  d5 {[%clk 0:03:01]} 3. e5 {[%clk 0:03:00]}  Bf5 {[%clk 0:03:01]} 4. g4 {[%clk 0:03:00]}  Be4 {[%clk 0:03:00]} 5. f3 {[%clk 0:03:00]}  Bg6 {[%clk 0:02:59]} 6. h4 {[%clk 0:03:01]}  h5 {[%clk 0:02:58]} 7. e6 {[%clk 0:03:01]}  Qd6 {[%clk 0:02:57]} 8. exf7+ {[%clk 0:02:55]}  Bxf7 {[%clk 0:02:56]} 9. Ne2 {[%clk 0:02:50]}  e5 {[%clk 0:02:53]} 10. g5 {[%clk 0:02:33]}  Nd7 {[%clk 0:02:43]} 11. Bh3 {[%clk 0:02:31]}  Be6 {[%clk 0:02:34]} 12. Nbc3 {[%clk 0:02:03]}  Bxh3 {[%clk 0:02:29]} 13. Rxh3 {[%clk 0:02:04]}  Qe6 {[%clk 0:02:29]} 14. Rh1 {[%clk 0:02:03]}  exd4 {[%clk 0:02:24]} 15. Qxd4 {[%clk 0:02:02]}  Ne7 {[%clk 0:02:14]} 16. Kd1 {[%clk 0:01:11]}  Nf5 {[%clk 0:02:08]} 17. Qf2 {[%clk 0:01:09]}  Bc5 {[%clk 0:02:05]} 18. Qg2 {[%clk 0:01:07]}  O-O-O {[%clk 0:01:52]} 19. Nf4 {[%clk 0:01:01]}  Ne3+ {[%clk 0:01:29]} 20. Bxe3 {[%clk 0:00:59]}  Qxe3 {[%clk 0:01:28]} 21. Nd3 {[%clk 0:00:52]}  Rhf8 {[%clk 0:01:16]} 22. f4 {[%clk 0:00:52]}  Qd4 {[%clk 0:00:56]} 23. Kc1 {[%clk 0:00:26]}  Ba3 {[%clk 0:00:49]} 24. Qd2 {[%clk 0:00:21]}  Bd6 {[%clk 0:00:39]} 25. Rf1 {[%clk 0:00:18]}  Nc5 {[%clk 0:00:36]} 26. f5 {[%clk 0:00:08]}  Nxd3+ {[%clk 0:00:27]} 27. cxd3 {[%clk 0:00:09]}  Qxh4 {[%clk 0:00:25]} 28. Kc2 {[%clk 0:00:09]}  Rde8 {[%clk 0:00:20]} 29. g6 {[%clk 0:00:07]}  Bb4 {[%clk 0:00:16]} 30. a3 {[%clk 0:00:06]}  Bxc3 {[%clk 0:00:15]} 31. Qxc3 {[%clk 0:00:07]}  Qh2+ {[%clk 0:00:13]} 32. Kb3 {[%clk 0:00:08]}  Re7 {[%clk 0:00:10]} 33. Ka2 {[%clk 0:00:08]}  Rfe8 {[%clk 0:00:08]} 34. f6 {[%clk 0:00:08]}  gxf6 {[%clk 0:00:07]} 35. Rxf6 {[%clk 0:00:08]}  Re2 {[%clk 0:00:06]} 36. Rb1 {[%clk 0:00:09]}  Rg8 {[%clk 0:00:03]} 37. g7 {[%clk 0:00:08]} 1-0


[Site "https://www.chess.com"]

[Event "Titled Tuesday Blitz March 01 Early 2022"]
[White "Rozhkov, Viacheslav"]
[Black "Lima, Kleyton Alcantara"]
[WhiteFideId "4181484"]
[BlackFideId "22718397"]
[WhiteElo "2324"]
[BlackElo "1951"]
[Result "1-0"]
[Round "03"]
[TimeControl "180+1"]
[Date "2022.03.01"]
[WhiteClock "0:00:48"]
[BlackClock "0:01:40"]

1. e4 {[%clk 0:03:00]}  c5 {[%clk 0:02:59]} 2. Nf3 {[%clk 0:03:00]}  d6 {[%clk 0:03:00]} 3. d4 {[%clk 0:03:01]}  cxd4 {[%clk 0:03:00]} 4. Nxd4 {[%clk 0:03:01]}  Nf6 {[%clk 0:03:00]} 5. Nc3 {[%clk 0:03:01]}  a6 {[%clk 0:03:01]} 6. Be3 {[%clk 0:03:01]}  e5 {[%clk 0:03:00]} 7. Nb3 {[%clk 0:03:01]}  Be6 {[%clk 0:03:00]} 8. f3 {[%clk 0:03:01]}  h5 {[%clk 0:03:00]} 9. g3 {[%clk 0:02:59]}  Nbd7 {[%clk 0:02:57]} 10. Qd2 {[%clk 0:02:59]}  Rc8 {[%clk 0:02:54]} 11. O-O-O {[%clk 0:02:59]}  b5 {[%clk 0:02:54]} 12. Nd5 {[%clk 0:02:58]}  Bxd5 {[%clk 0:02:54]} 13. exd5 {[%clk 0:02:59]}  Nb6 {[%clk 0:02:55]} 14. Bxb6 {[%clk 0:02:59]}  Qxb6 {[%clk 0:02:55]} 15. Bh3 {[%clk 0:02:54]}  Rc4 {[%clk 0:02:53]} 16. f4 {[%clk 0:02:48]}  g6 {[%clk 0:02:51]} 17. Kb1 {[%clk 0:02:06]}  Bh6 {[%clk 0:02:44]} 18. Qa5 {[%clk 0:02:01]}  Qxa5 {[%clk 0:02:35]} 19. Nxa5 {[%clk 0:02:00]}  Rc5 {[%clk 0:02:33]} 20. Nb7 {[%clk 0:01:34]}  Rxd5 {[%clk 0:02:30]} 21. Nxd6+ {[%clk 0:01:34]}  Ke7 {[%clk 0:02:30]} 22. Rxd5 {[%clk 0:01:21]}  Nxd5 {[%clk 0:02:31]} 23. fxe5 {[%clk 0:01:22]}  Bg7 {[%clk 0:02:25]} 24. Rf1 {[%clk 0:01:10]}  Bxe5 {[%clk 0:02:20]} 25. Nxf7 {[%clk 0:01:08]}  Ne3 {[%clk 0:02:09]} 26. Nxe5 {[%clk 0:01:06]}  Nxf1 {[%clk 0:02:08]} 27. Nxg6+ {[%clk 0:01:06]}  Kf6 {[%clk 0:02:08]} 28. Nxh8 {[%clk 0:01:07]}  Nxh2 {[%clk 0:02:09]} 29. b4 {[%clk 0:00:58]}  Kg7 {[%clk 0:02:06]} 30. Bc8 {[%clk 0:00:57]}  Kxh8 {[%clk 0:02:04]} 31. Bxa6 {[%clk 0:00:57]}  Nf1 {[%clk 0:02:04]} 32. Bxb5 {[%clk 0:00:57]}  Nxg3 {[%clk 0:02:05]} 33. Bc6 {[%clk 0:00:51]}  Kg7 {[%clk 0:02:05]} 34. b5 {[%clk 0:00:50]}  Nf1 {[%clk 0:01:42]} 35. b6 {[%clk 0:00:48]}  Nd2+ {[%clk 0:01:42]} 36. Kc1 {[%clk 0:00:48]}  Nc4 {[%clk 0:01:40]} 37. b7 {[%clk 0:00:48]} 1-0


[Site "https://www.chess.com"]

[Event "Titled Tuesday Blitz March 01 Early 2022"]
[White "Rustemov, Alexander"]
[Black "Hamley, Ryan"]
[WhiteFideId "4119002"]
[BlackFideId "30959497"]
[WhiteElo "2800"]
[BlackElo "2550"]
[Result "1-0"]
[Round "03"]
[TimeControl "180+1"]
[Date "2022.03.01"]
[WhiteClock "0:01:25"]
[BlackClock "0:00:36"]

1. d4 {[%clk 0:03:00]}  Nf6 {[%clk 0:02:58]} 2. c4 {[%clk 0:03:01]}  e6 {[%clk 0:02:58]} 3. Nf3 {[%clk 0:03:01]}  d5 {[%clk 0:02:57]} 4. Nc3 {[%clk 0:03:01]}  Bb4 {[%clk 0:02:58]} 5. Bg5 {[%clk 0:03:01]}  h6 {[%clk 0:02:56]} 6. Bxf6 {[%clk 0:03:01]}  Qxf6 {[%clk 0:02:57]} 7. e3 {[%clk 0:03:01]}  O-O {[%clk 0:02:55]} 8. Qb3 {[%clk 0:03:02]}  Bxc3+ {[%clk 0:02:47]} 9. bxc3 {[%clk 0:03:02]}  dxc4 {[%clk 0:02:47]} 10. Bxc4 {[%clk 0:03:01]}  a6 {[%clk 0:02:47]} 11. O-O {[%clk 0:02:58]}  Nc6 {[%clk 0:02:43]} 12. Be2 {[%clk 0:02:57]}  b6 {[%clk 0:02:37]} 13. Nd2 {[%clk 0:02:47]}  Bb7 {[%clk 0:02:35]} 14. Rab1 {[%clk 0:02:22]}  Rad8 {[%clk 0:02:30]} 15. Rfd1 {[%clk 0:02:20]}  Rfe8 {[%clk 0:02:25]} 16. Bf3 {[%clk 0:02:15]}  e5 {[%clk 0:02:00]} 17. Nc4 {[%clk 0:02:10]}  exd4 {[%clk 0:01:50]} 18. cxd4 {[%clk 0:02:09]}  Ba8 {[%clk 0:01:44]} 19. Qc3 {[%clk 0:02:05]}  Rd7 {[%clk 0:01:37]} 20. Rbc1 {[%clk 0:02:03]}  Qg6 {[%clk 0:01:31]} 21. Nd2 {[%clk 0:01:42]}  Ne7 {[%clk 0:01:06]} 22. Bxa8 {[%clk 0:01:37]}  Rxa8 {[%clk 0:01:07]} 23. Nf3 {[%clk 0:01:37]}  Nd5 {[%clk 0:00:43]} 24. Qc4 {[%clk 0:01:37]}  Qe6 {[%clk 0:00:41]} 25. Ne5 {[%clk 0:01:35]}  Re7 {[%clk 0:00:41]} 26. Qb3 {[%clk 0:01:25]}  Rc8 {[%clk 0:00:36]} 27. Rc6 {[%clk 0:01:25]} 1-0


[Site "https://www.chess.com"]

[Event "Titled Tuesday Blitz March 01 Early 2022"]
[White "Samunenkov, Ihor"]
[Black "Warmerdam, Max"]
[WhiteFideId "14187086"]
[BlackFideId "1048104"]
[WhiteElo "2406"]
[BlackElo "2537"]
[Result "0-1"]
[Round "03"]
[TimeControl "180+1"]
[Date "2022.03.01"]
[WhiteClock "0:00:06"]
[BlackClock "0:00:19"]

1. d4 {[%clk 0:03:00]}  d5 {[%clk 0:02:57]} 2. c4 {[%clk 0:03:01]}  e6 {[%clk 0:02:57]} 3. Nc3 {[%clk 0:02:59]}  a6 {[%clk 0:02:57]} 4. Nf3 {[%clk 0:02:31]}  dxc4 {[%clk 0:02:53]} 5. a4 {[%clk 0:02:31]}  Nc6 {[%clk 0:02:52]} 6. e3 {[%clk 0:02:27]}  Na5 {[%clk 0:02:52]} 7. Nd2 {[%clk 0:02:26]}  Nf6 {[%clk 0:02:51]} 8. Nxc4 {[%clk 0:02:25]}  c5 {[%clk 0:02:52]} 9. dxc5 {[%clk 0:02:09]}  Qxd1+ {[%clk 0:02:51]} 10. Kxd1 {[%clk 0:02:10]}  Nb3 {[%clk 0:02:52]} 11. Ra3 {[%clk 0:02:03]}  Nxc1 {[%clk 0:02:52]} 12. Kxc1 {[%clk 0:02:04]}  Bxc5 {[%clk 0:02:52]} 13. Rb3 {[%clk 0:02:04]}  Ke7 {[%clk 0:02:15]} 14. Be2 {[%clk 0:02:04]}  Rb8 {[%clk 0:02:12]} 15. Bf3 {[%clk 0:02:02]}  Rd8 {[%clk 0:02:09]} 16. Na5 {[%clk 0:02:01]}  Bd6 {[%clk 0:01:48]} 17. Nxb7 {[%clk 0:01:54]}  Bxb7 {[%clk 0:01:48]} 18. Rxb7+ {[%clk 0:01:54]}  Rxb7 {[%clk 0:01:48]} 19. Bxb7 {[%clk 0:01:55]}  a5 {[%clk 0:01:49]} 20. Bf3 {[%clk 0:01:49]}  Be5 {[%clk 0:01:46]} 21. g3 {[%clk 0:01:47]}  Rb8 {[%clk 0:01:40]} 22. Kc2 {[%clk 0:01:44]}  Rb4 {[%clk 0:01:41]} 23. b3 {[%clk 0:01:44]}  Nd7 {[%clk 0:01:38]} 24. Na2 {[%clk 0:01:15]}  Rb8 {[%clk 0:01:35]} 25. Be2 {[%clk 0:01:12]}  Rc8+ {[%clk 0:01:30]} 26. Kb1 {[%clk 0:01:09]}  Nc5 {[%clk 0:01:29]} 27. Rc1 {[%clk 0:01:08]}  Kd8 {[%clk 0:01:27]} 28. Bc4 {[%clk 0:01:03]}  Ne4 {[%clk 0:01:27]} 29. Rd1+ {[%clk 0:00:58]}  Ke7 {[%clk 0:01:26]} 30. f3 {[%clk 0:00:58]}  Nc5 {[%clk 0:01:13]} 31. Nc1 {[%clk 0:00:56]}  Nxa4 {[%clk 0:01:12]} 32. Ne2 {[%clk 0:00:51]}  Nb6 {[%clk 0:00:49]} 33. Bd3 {[%clk 0:00:44]}  Rb8 {[%clk 0:00:49]} 34. f4 {[%clk 0:00:35]}  Bf6 {[%clk 0:00:47]} 35. e4 {[%clk 0:00:32]}  e5 {[%clk 0:00:48]} 36. Nc3 {[%clk 0:00:31]}  exf4 {[%clk 0:00:47]} 37. e5 {[%clk 0:00:27]}  Bxe5 {[%clk 0:00:47]} 38. Re1 {[%clk 0:00:27]}  Nd7 {[%clk 0:00:33]} 39. Bc4 {[%clk 0:00:23]}  Kf8 {[%clk 0:00:31]} 40. Nd5 {[%clk 0:00:22]}  fxg3 {[%clk 0:00:31]} 41. hxg3 {[%clk 0:00:23]}  Bxg3 {[%clk 0:00:31]} 42. Re7 {[%clk 0:00:23]}  Ne5 {[%clk 0:00:30]} 43. Kc2 {[%clk 0:00:20]}  a4 {[%clk 0:00:29]} 44. Ra7 {[%clk 0:00:14]}  axb3+ {[%clk 0:00:29]} 45. Bxb3 {[%clk 0:00:15]}  h5 {[%clk 0:00:29]} 46. Ne3 {[%clk 0:00:12]}  g6 {[%clk 0:00:30]} 47. Bd5 {[%clk 0:00:09]}  h4 {[%clk 0:00:29]} 48. Nc4 {[%clk 0:00:09]}  f5 {[%clk 0:00:20]} 49. Nd6 {[%clk 0:00:06]}  Rd8 {[%clk 0:00:19]} 0-1


[Site "https://www.chess.com"]

[Event "Titled Tuesday Blitz March 01 Early 2022"]
[White "Sarana, Alexey"]
[Black "Heinemann, Josefine"]
[WhiteFideId "24133795"]
[BlackFideId "12900460"]
[WhiteElo "2665"]
[BlackElo "2300"]
[Result "1-0"]
[Round "03"]
[TimeControl "180+1"]
[Date "2022.03.01"]
[WhiteClock "0:00:17"]
[BlackClock "0:00:03"]

1. d4 {[%clk 0:02:38]}  Nf6 {[%clk 0:02:59]} 2. c4 {[%clk 0:02:38]}  e6 {[%clk 0:02:59]} 3. Nc3 {[%clk 0:02:39]}  Bb4 {[%clk 0:02:58]} 4. e3 {[%clk 0:02:40]}  O-O {[%clk 0:02:57]} 5. Bd3 {[%clk 0:02:40]}  d5 {[%clk 0:02:56]} 6. a3 {[%clk 0:02:40]}  Be7 {[%clk 0:02:55]} 7. Nf3 {[%clk 0:02:40]}  dxc4 {[%clk 0:02:48]} 8. Bxc4 {[%clk 0:02:40]}  c5 {[%clk 0:02:48]} 9. O-O {[%clk 0:02:36]}  cxd4 {[%clk 0:02:47]} 10. exd4 {[%clk 0:02:35]}  Nc6 {[%clk 0:02:21]} 11. Bg5 {[%clk 0:02:33]}  h6 {[%clk 0:02:20]} 12. Bh4 {[%clk 0:02:32]}  b6 {[%clk 0:02:14]} 13. Qd3 {[%clk 0:02:32]}  Bb7 {[%clk 0:02:09]} 14. Rad1 {[%clk 0:02:32]}  Nd5 {[%clk 0:01:56]} 15. Bg3 {[%clk 0:02:20]}  Nxc3 {[%clk 0:01:52]} 16. bxc3 {[%clk 0:02:21]}  Bf6 {[%clk 0:01:50]} 17. Ba2 {[%clk 0:02:19]}  Ne7 {[%clk 0:01:42]} 18. Ne5 {[%clk 0:02:11]}  g6 {[%clk 0:01:29]} 19. Bf4 {[%clk 0:02:10]}  Kg7 {[%clk 0:01:18]} 20. Qh3 {[%clk 0:01:59]}  g5 {[%clk 0:01:10]} 21. Bc1 {[%clk 0:01:51]}  Bd5 {[%clk 0:00:50]} 22. Ng4 {[%clk 0:01:48]}  Nf5 {[%clk 0:00:43]} 23. Bb1 {[%clk 0:01:46]}  Rh8 {[%clk 0:00:34]} 24. f4 {[%clk 0:01:42]}  Be7 {[%clk 0:00:18]} 25. Bxf5 {[%clk 0:01:18]}  exf5 {[%clk 0:00:18]} 26. Ne3 {[%clk 0:01:19]}  g4 {[%clk 0:00:17]} 27. Nxf5+ {[%clk 0:01:19]}  Kf8 {[%clk 0:00:16]} 28. Qxg4 {[%clk 0:01:18]}  Rg8 {[%clk 0:00:17]} 29. Qxg8+ {[%clk 0:00:44]}  Kxg8 {[%clk 0:00:17]} 30. Nxh6+ {[%clk 0:00:45]}  Kh7 {[%clk 0:00:16]} 31. f5 {[%clk 0:00:44]}  Bd6 {[%clk 0:00:15]} 32. Rd3 {[%clk 0:00:42]}  Qc7 {[%clk 0:00:09]} 33. Rh3 {[%clk 0:00:42]}  Kg7 {[%clk 0:00:09]} 34. f6+ {[%clk 0:00:41]}  Kf8 {[%clk 0:00:09]} 35. Nf5 {[%clk 0:00:40]}  Ke8 {[%clk 0:00:09]} 36. Re1+ {[%clk 0:00:30]}  Kd7 {[%clk 0:00:09]} 37. Bf4 {[%clk 0:00:30]}  Bxf4 {[%clk 0:00:07]} 38. Re7+ {[%clk 0:00:31]}  Kc6 {[%clk 0:00:07]} 39. Rxc7+ {[%clk 0:00:31]}  Kxc7 {[%clk 0:00:08]} 40. Ne7 {[%clk 0:00:31]}  Bb7 {[%clk 0:00:07]} 41. Rh7 {[%clk 0:00:30]}  Bd2 {[%clk 0:00:05]} 42. Rxf7 {[%clk 0:00:29]}  Kd6 {[%clk 0:00:05]} 43. g4 {[%clk 0:00:21]}  Ke6 {[%clk 0:00:05]} 44. Rh7 {[%clk 0:00:18]}  Rf8 {[%clk 0:00:04]} 45. Nf5 {[%clk 0:00:15]}  Be4 {[%clk 0:00:04]} 46. Re7+ {[%clk 0:00:15]}  Kxf6 {[%clk 0:00:04]} 47. Rxe4 {[%clk 0:00:15]}  Kg5 {[%clk 0:00:05]} 48. c4 {[%clk 0:00:15]}  Bc1 {[%clk 0:00:04]} 49. h4+ {[%clk 0:00:16]}  Kf6 {[%clk 0:00:03]} 50. d5 {[%clk 0:00:17]} 1-0


[Site "https://www.chess.com"]

[Event "Titled Tuesday Blitz March 01 Early 2022"]
[White "Savchenko, Boris"]
[Black "Shuvalova, Polina"]
[WhiteFideId "4147332"]
[BlackFideId "24171760"]
[WhiteElo "2512"]
[BlackElo "2355"]
[Result "1/2-1/2"]
[Round "03"]
[TimeControl "180+1"]
[Date "2022.03.01"]
[WhiteClock "0:00:06"]
[BlackClock "0:00:05"]

1. e4 {[%clk 0:03:00]}  c5 {[%clk 0:02:54]} 2. Nf3 {[%clk 0:02:56]}  d6 {[%clk 0:02:50]} 3. d4 {[%clk 0:02:56]}  cxd4 {[%clk 0:02:51]} 4. Nxd4 {[%clk 0:02:56]}  Nf6 {[%clk 0:02:50]} 5. Nc3 {[%clk 0:02:56]}  Nc6 {[%clk 0:02:51]} 6. Bg5 {[%clk 0:02:43]}  g6 {[%clk 0:02:49]} 7. Bxf6 {[%clk 0:02:42]}  exf6 {[%clk 0:02:49]} 8. Bb5 {[%clk 0:02:31]}  Bd7 {[%clk 0:02:47]} 9. Bxc6 {[%clk 0:02:31]}  bxc6 {[%clk 0:02:44]} 10. Qd2 {[%clk 0:02:32]}  Bg7 {[%clk 0:02:43]} 11. f4 {[%clk 0:02:29]}  O-O {[%clk 0:02:42]} 12. f5 {[%clk 0:02:26]}  Rb8 {[%clk 0:02:28]} 13. O-O-O {[%clk 0:02:25]}  Qb6 {[%clk 0:02:19]} 14. b3 {[%clk 0:02:25]}  Rfe8 {[%clk 0:02:07]} 15. g4 {[%clk 0:02:19]}  Qc5 {[%clk 0:01:30]} 16. Kb1 {[%clk 0:01:38]}  d5 {[%clk 0:01:21]} 17. Nde2 {[%clk 0:01:15]}  Re5 {[%clk 0:01:05]} 18. h4 {[%clk 0:00:58]}  Rbe8 {[%clk 0:00:55]} 19. h5 {[%clk 0:00:57]}  g5 {[%clk 0:00:53]} 20. h6 {[%clk 0:00:57]}  Bf8 {[%clk 0:00:52]} 21. exd5 {[%clk 0:00:53]}  cxd5 {[%clk 0:00:38]} 22. Nxd5 {[%clk 0:00:33]}  Rxe2 {[%clk 0:00:27]} 23. Nxf6+ {[%clk 0:00:32]}  Kh8 {[%clk 0:00:27]} 24. Qc1 {[%clk 0:00:27]}  Bc6 {[%clk 0:00:22]} 25. Nxe8 {[%clk 0:00:17]}  Bxh1 {[%clk 0:00:20]} 26. Qb2+ {[%clk 0:00:17]}  Qe5 {[%clk 0:00:14]} 27. Qxe5+ {[%clk 0:00:16]}  Rxe5 {[%clk 0:00:15]} 28. Nf6 {[%clk 0:00:17]}  Be7 {[%clk 0:00:11]} 29. Nd7 {[%clk 0:00:10]}  Rd5 {[%clk 0:00:11]} 30. Rxh1 {[%clk 0:00:08]}  Rxd7 {[%clk 0:00:11]} 31. c4 {[%clk 0:00:06]}  Kg8 {[%clk 0:00:10]} 32. Kc2 {[%clk 0:00:07]}  f6 {[%clk 0:00:11]} 33. Re1 {[%clk 0:00:06]}  Kf7 {[%clk 0:00:11]} 34. Re6 {[%clk 0:00:07]}  a5 {[%clk 0:00:08]} 35. Ra6 {[%clk 0:00:04]}  Bb4 {[%clk 0:00:08]} 36. a3 {[%clk 0:00:04]}  Bxa3 {[%clk 0:00:06]} 37. Rxa5 {[%clk 0:00:05]}  Bb4 {[%clk 0:00:07]} 38. Rb5 {[%clk 0:00:05]}  Bf8 {[%clk 0:00:07]} 39. c5 {[%clk 0:00:05]}  Rc7 {[%clk 0:00:05]} 40. b4 {[%clk 0:00:06]}  Bxh6 {[%clk 0:00:06]} 41. Rb8 {[%clk 0:00:05]}  Bf8 {[%clk 0:00:06]} 42. Kc3 {[%clk 0:00:05]}  Bxc5 {[%clk 0:00:04]} 43. bxc5 {[%clk 0:00:05]}  Rxc5+ {[%clk 0:00:05]} 44. Kd3 {[%clk 0:00:06]}  Re5 {[%clk 0:00:05]} 45. Rb7+ {[%clk 0:00:05]}  Re7 {[%clk 0:00:05]} 46. Rb4 {[%clk 0:00:03]}  Kg7 {[%clk 0:00:05]} 47. Rb6 {[%clk 0:00:03]}  Kf7 {[%clk 0:00:04]} 48. Rc6 {[%clk 0:00:02]}  Kg7 {[%clk 0:00:04]} 49. Rb6 {[%clk 0:00:03]}  h6 {[%clk 0:00:05]} 50. Ra6 {[%clk 0:00:03]}  Kf7 {[%clk 0:00:04]} 51. Rb6 {[%clk 0:00:03]}  Re1 {[%clk 0:00:03]} 52. Rb7+ {[%clk 0:00:03]}  Re7 {[%clk 0:00:03]} 53. Rb6 {[%clk 0:00:03]}  Kg7 {[%clk 0:00:03]} 54. Ra6 {[%clk 0:00:04]}  Rf7 {[%clk 0:00:03]} 55. Ke4 {[%clk 0:00:03]}  h5 {[%clk 0:00:03]} 56. gxh5 {[%clk 0:00:03]}  Kh6 {[%clk 0:00:04]} 57. Ra8 {[%clk 0:00:03]}  Kxh5 {[%clk 0:00:05]} 58. Kf3 {[%clk 0:00:04]}  Kh6 {[%clk 0:00:04]} 59. Rg8 {[%clk 0:00:03]}  Kh7 {[%clk 0:00:04]} 60. Rg6 {[%clk 0:00:03]}  Rf8 {[%clk 0:00:03]} 61. Kg4 {[%clk 0:00:03]}  Rf7 {[%clk 0:00:04]} 62. Kh5 {[%clk 0:00:04]}  Rf8 {[%clk 0:00:04]} 63. Rh6+ {[%clk 0:00:04]}  Kg7 {[%clk 0:00:05]} 64. Rg6+ {[%clk 0:00:04]}  Kf7 {[%clk 0:00:05]} 65. Rh6 {[%clk 0:00:05]}  Rg8 {[%clk 0:00:04]} 66. Kg4 {[%clk 0:00:05]}  Rg7 {[%clk 0:00:03]} 67. Rh8 {[%clk 0:00:05]}  Rg8 {[%clk 0:00:04]} 68. Rh7+ {[%clk 0:00:06]}  Rg7 {[%clk 0:00:04]} 69. Rh8 {[%clk 0:00:06]}  Rg8 {[%clk 0:00:04]} 70. Rh7+ {[%clk 0:00:06]}  Rg7 {[%clk 0:00:05]} 71. Rh8 {[%clk 0:00:06]} 1/2-1/2


[Site "https://www.chess.com"]

[Event "Titled Tuesday Blitz March 01 Early 2022"]
[White "Shevtchenko, Olesya"]
[Black "Kuzmin, Roman"]
[WhiteFideId "24131890"]
[BlackFideId "44134932"]
[WhiteElo "2003"]
[BlackElo "1978"]
[Result "0-1"]
[Round "03"]
[TimeControl "180+1"]
[Date "2022.03.01"]
[WhiteClock "0:02:44"]
[BlackClock "0:01:01"]

1. e4 {[%clk 0:03:00]}  c5 {[%clk 0:02:59]} 2. Nf3 {[%clk 0:03:00]}  d6 {[%clk 0:02:58]} 3. d4 {[%clk 0:03:00]}  cxd4 {[%clk 0:02:59]} 4. Nxd4 {[%clk 0:03:01]}  Nf6 {[%clk 0:02:59]} 5. Nc3 {[%clk 0:03:01]}  a6 {[%clk 0:03:00]} 6. Be3 {[%clk 0:03:00]}  e5 {[%clk 0:02:59]} 7. Nb3 {[%clk 0:02:59]}  Be6 {[%clk 0:02:59]} 8. h3 {[%clk 0:02:59]}  h5 {[%clk 0:02:09]} 9. Qf3 {[%clk 0:02:59]}  Nbd7 {[%clk 0:02:02]} 10. O-O-O {[%clk 0:02:58]}  b5 {[%clk 0:02:00]} 11. Kb1 {[%clk 0:02:58]}  Rc8 {[%clk 0:01:54]} 12. Be2 {[%clk 0:02:57]}  Nb6 {[%clk 0:01:37]} 13. Nd5 {[%clk 0:02:55]}  Bxd5 {[%clk 0:01:31]} 14. exd5 {[%clk 0:02:55]}  Nc4 {[%clk 0:01:23]} 15. Bc1 {[%clk 0:02:52]}  a5 {[%clk 0:01:18]} 16. g4 {[%clk 0:02:52]}  a4 {[%clk 0:01:15]} 17. Nd2 {[%clk 0:02:53]}  g6 {[%clk 0:01:06]} 18. g5 {[%clk 0:02:49]}  Nd7 {[%clk 0:01:04]} 19. Nxc4 {[%clk 0:02:45]}  bxc4 {[%clk 0:01:03]} 20. Qa3 {[%clk 0:02:45]}  Bg7 {[%clk 0:01:01]} 21. Qxa4 {[%clk 0:02:44]}  O-O {[%clk 0:01:02]} 22. Bxc4 {[%clk 0:02:44]}  Nb6 {[%clk 0:01:01]} 0-1


[Site "https://www.chess.com"]